[Event "Live Chess"]
[Site "Chess.com"]
[Date "2023.05.21"]
[Round "-"]
[White "JohanKjeldahl"]
[Black "chessfiction"]
[Result "0-1"]
[WhiteElo "1903"]
[BlackElo "2331"]
[TimeControl "300"]
[EndTime "1:48:08 PDT"]
[Termination "chessfiction won by resignation"]

1. c4 {[%clk 0:04:57.5]} 1... d5 {[%clk 0:04:58.1]} 2. cxd5 {[%clk 0:04:55.5]}
2... c6 {[%clk 0:04:58]} 3. dxc6 {[%clk 0:04:52.3]} 3... e5 {[%clk 0:04:57.3]}
4. cxb7 {[%clk 0:04:48.9]} 4... Bxb7 {[%clk 0:04:56.4]} 5. Nc3 {[%clk
0:04:47.5]} 5... Bc5 {[%clk 0:04:54.4]} 6. e3 {[%clk 0:04:45.3]} 6... Nf6 {[%clk
0:04:52.8]} 7. Nf3 {[%clk 0:04:44.2]} 7... e4 {[%clk 0:04:51.5]} 8. Ng5 {[%clk
0:04:35.6]} 8... O-O {[%clk 0:04:49.6]} 9. Be2 {[%clk 0:04:32.9]} 9... h6 {[%clk
0:04:47]} 10. Nh3 {[%clk 0:04:31.2]} 10... Nc6 {[%clk 0:04:44.7]} 11. O-O {[%clk
0:04:29.6]} 11... Ne5 {[%clk 0:04:43.7]} 12. a3 {[%clk 0:04:23.2]} 12... Qd7
{[%clk 0:04:28.7]} 13. b4 {[%clk 0:04:21]} 13... Bd6 {[%clk 0:04:27]} 14. d4
{[%clk 0:04:14.8]} 14... exd3 {[%clk 0:04:23]} 15. Bxd3 {[%clk 0:04:13.6]} 15...
Nxd3 {[%clk 0:04:20.8]} 16. Qxd3 {[%clk 0:04:12.4]} 16... Bxh2+ {[%clk
0:04:19.7]} 0-1

[Event "Live Chess"]
[Site "Chess.com"]
[Date "2023.05.21"]
[Round "-"]
[White "siddu198"]
[Black "Doge_Dandolo"]
[Result "0-1"]
[WhiteElo "1608"]
[BlackElo "1886"]
[TimeControl "300"]
[EndTime "1:48:15 PDT"]
[Termination "Doge_Dandolo won by resignation"]

1. b3 {[%clk 0:04:56.2]} 1... Nf6 {[%clk 0:04:58.4]} 2. e4 {[%clk 0:04:55]} 2...
Nxe4 {[%clk 0:04:55.8]} 3. d4 {[%clk 0:04:53]} 3... d5 {[%clk 0:04:54]} 4. Bd3
{[%clk 0:04:51.2]} 4... Bf5 {[%clk 0:04:52.2]} 5. f3 {[%clk 0:04:46.3]} 5... Nd6
{[%clk 0:04:50.2]} 6. Bxf5 {[%clk 0:04:44]} 6... Nxf5 {[%clk 0:04:49.2]} 7. Qd3
{[%clk 0:04:43.6]} 7... g6 {[%clk 0:04:46.1]} 8. g4 {[%clk 0:04:42.1]} 8... Nd6
{[%clk 0:04:44.3]} 9. Nc3 {[%clk 0:04:40.3]} 9... c6 {[%clk 0:04:42.9]} 10. Bb2
{[%clk 0:04:38.3]} 10... Bg7 {[%clk 0:04:41.7]} 11. O-O-O {[%clk 0:04:37.1]}
11... a5 {[%clk 0:04:39.7]} 12. Nh3 {[%clk 0:04:35.8]} 12... b5 {[%clk
0:04:34.7]} 13. Ng5 {[%clk 0:04:34.4]} 13... a4 {[%clk 0:04:30.8]} 14. bxa4
{[%clk 0:04:33]} 14... bxa4 {[%clk 0:04:29.3]} 15. a3 {[%clk 0:04:31.3]} 15...
Nc4 {[%clk 0:04:26.2]} 16. Rhe1 {[%clk 0:04:21.1]} 16... Qb6 {[%clk 0:04:16.1]}
17. Ba1 {[%clk 0:04:06.5]} 17... Ra7 {[%clk 0:04:12]} 18. Re2 {[%clk 0:03:42.1]}
18... Na6 {[%clk 0:03:58.9]} 19. Rde1 {[%clk 0:03:37.9]} 19... e6 {[%clk
0:03:52.5]} 20. Nxe6 {[%clk 0:03:34.9]} 20... fxe6 {[%clk 0:03:50.9]} 21. Rxe6+
{[%clk 0:03:34]} 21... Kf8 {[%clk 0:03:48.5]} 22. Nxa4 {[%clk 0:03:27.5]} 22...
Qd8 {[%clk 0:03:34]} 23. Rxc6 {[%clk 0:02:58.7]} 23... Bh6+ {[%clk 0:03:27.6]}
24. Kd1 {[%clk 0:02:53.3]} 24... Kg7 {[%clk 0:03:21.3]} 25. h4 {[%clk 0:02:25]}
25... Re8 {[%clk 0:03:13.7]} 26. Rce6 {[%clk 0:02:10.9]} 26... Rxe6 {[%clk
0:03:08.6]} 27. Rxe6 {[%clk 0:02:10.8]} 27... Kg8 {[%clk 0:03:07]} 28. g5 {[%clk
0:02:06]} 28... Bg7 {[%clk 0:03:04.8]} 29. Qe2 {[%clk 0:01:54.5]} 29... Nc7
{[%clk 0:02:47.4]} 30. Nc5 {[%clk 0:01:28.2]} 30... Rxa3 {[%clk 0:02:42.9]} 31.
Qd3 {[%clk 0:01:12.7]} 31... Rxd3+ {[%clk 0:02:35.3]} 32. Ke2 {[%clk 0:01:12.6]}
0-1

[Event "Live Chess"]
[Site "Chess.com"]
[Date "2023.05.21"]
[Round "-"]
[White "Tushinskiy"]
[Black "JanMur7"]
[Result "1-0"]
[WhiteElo "2185"]
[BlackElo "1967"]
[TimeControl "300"]
[EndTime "1:48:26 PDT"]
[Termination "Tushinskiy won by resignation"]

1. d4 {[%clk 0:04:57.4]} 1... Nf6 {[%clk 0:04:58.3]} 2. c3 {[%clk 0:04:57.3]}
2... c5 {[%clk 0:04:55.4]} 3. Nf3 {[%clk 0:04:57.2]} 3... cxd4 {[%clk
0:04:53.8]} 4. cxd4 {[%clk 0:04:56.6]} 4... d5 {[%clk 0:04:53.2]} 5. Nc3 {[%clk
0:04:56.1]} 5... Nc6 {[%clk 0:04:50.9]} 6. Bf4 {[%clk 0:04:55.3]} 6... Bf5
{[%clk 0:04:49.8]} 7. e3 {[%clk 0:04:54.5]} 7... e6 {[%clk 0:04:48.9]} 8. Bd3
{[%clk 0:04:53.9]} 8... Ne4 {[%clk 0:04:45.2]} 9. Bxe4 {[%clk 0:04:52.4]} 9...
Bxe4 {[%clk 0:04:34.6]} 10. Nxe4 {[%clk 0:04:50.9]} 10... dxe4 {[%clk
0:04:34.3]} 11. Nd2 {[%clk 0:04:50.7]} 11... Qd5 {[%clk 0:04:30.7]} 12. O-O
{[%clk 0:04:49.5]} 12... h5 {[%clk 0:04:26.4]} 13. h3 {[%clk 0:04:47.8]} 13...
Rd8 {[%clk 0:04:15.6]} 14. Qc2 {[%clk 0:04:44.2]} 14... e5 {[%clk 0:04:11.8]}
15. Bh2 {[%clk 0:04:42]} 15... exd4 {[%clk 0:04:08.6]} 16. exd4 {[%clk
0:04:39.3]} 16... Nxd4 {[%clk 0:04:06.7]} 17. Qa4+ {[%clk 0:04:37.3]} 17... Nc6
{[%clk 0:04:01.9]} 18. Nxe4 {[%clk 0:04:35.1]} 18... Be7 {[%clk 0:03:55.7]} 19.
Rad1 {[%clk 0:04:32.8]} 19... Qa5 {[%clk 0:03:43.9]} 20. Rxd8+ {[%clk
0:04:30.7]} 20... Kxd8 {[%clk 0:03:23.4]} 21. Rd1+ {[%clk 0:04:28.1]} 21... Kc8
{[%clk 0:03:21.6]} 22. Qc4 {[%clk 0:04:11.1]} 22... Qf5 {[%clk 0:02:58]} 23. a3
{[%clk 0:04:03]} 23... Rd8 {[%clk 0:02:40.1]} 24. Rxd8+ {[%clk 0:03:59]} 24...
Kxd8 {[%clk 0:02:39.2]} 25. b4 {[%clk 0:03:54.9]} 25... Qd7 {[%clk 0:02:20.6]}
26. Bf4 {[%clk 0:03:47.7]} 26... Qd4 {[%clk 0:02:09.7]} 27. Qe2 {[%clk
0:03:39.5]} 27... Qa1+ {[%clk 0:02:01.4]} 28. Kh2 {[%clk 0:03:37.7]} 28... Qxa3
{[%clk 0:02:00.5]} 29. b5 {[%clk 0:03:36.3]} 29... Nd4 {[%clk 0:01:50.5]} 30.
Qxh5 {[%clk 0:03:34.5]} 30... Qb3 {[%clk 0:01:34]} 31. Qh8+ {[%clk 0:03:26]}
31... Kd7 {[%clk 0:01:31]} 32. Qxg7 {[%clk 0:03:24.4]} 32... Ne6 {[%clk
0:01:28.6]} 33. Qxf7 {[%clk 0:03:13.3]} 33... Qxb5 {[%clk 0:01:18.3]} 34. Nf6+
{[%clk 0:03:09.1]} 1-0

[Event "Live Chess"]
[Site "Chess.com"]
[Date "2023.05.21"]
[Round "-"]
[White "elephantgerrald"]
[Black "RamsayFlayer"]
[Result "0-1"]
[WhiteElo "706"]
[BlackElo "1967"]
[TimeControl "300"]
[EndTime "1:48:33 PDT"]
[Termination "RamsayFlayer won by checkmate"]

1. e4 {[%clk 0:04:58.7]} 1... e5 {[%clk 0:04:58.9]} 2. Nf3 {[%clk 0:04:57.4]}
2... Nc6 {[%clk 0:04:58.1]} 3. Bb5 {[%clk 0:04:55.7]} 3... a6 {[%clk 0:04:56.9]}
4. Bxc6 {[%clk 0:04:54.7]} 4... dxc6 {[%clk 0:04:55.7]} 5. Nxe5 {[%clk
0:04:53.8]} 5... Qd4 {[%clk 0:04:55.3]} 6. Nxf7 {[%clk 0:04:49.5]} 6... Qxe4+
{[%clk 0:04:51.4]} 7. Qe2 {[%clk 0:04:47.9]} 7... Qxe2+ {[%clk 0:04:50.6]} 8.
Kxe2 {[%clk 0:04:46.9]} 8... Kxf7 {[%clk 0:04:50.3]} 9. Re1 {[%clk 0:04:45.7]}
9... Nf6 {[%clk 0:04:47]} 10. Kf1 {[%clk 0:04:44.3]} 10... Bc5 {[%clk
0:04:46.5]} 11. c3 {[%clk 0:04:42.1]} 11... Re8 {[%clk 0:04:45.1]} 12. d4 {[%clk
0:04:38.8]} 12... Rxe1+ {[%clk 0:04:39.5]} 13. Kxe1 {[%clk 0:04:37.8]} 13... Bd6
{[%clk 0:04:39.1]} 14. Be3 {[%clk 0:04:34.8]} 14... Bf5 {[%clk 0:04:36.1]} 15.
Nd2 {[%clk 0:04:10.8]} 15... Ng4 {[%clk 0:04:23]} 16. h3 {[%clk 0:03:52.9]}
16... Nxe3 {[%clk 0:04:20]} 17. fxe3 {[%clk 0:03:51.3]} 17... Re8 {[%clk
0:04:19.2]} 18. Ke2 {[%clk 0:03:50]} 18... Bf4 {[%clk 0:04:14.8]} 19. Nc4 {[%clk
0:03:46.6]} 19... b5 {[%clk 0:04:09.1]} 20. Kf3 {[%clk 0:03:44]} 20... Bh6
{[%clk 0:04:05.9]} 21. Nd2 {[%clk 0:03:41.8]} 21... Rxe3+ {[%clk 0:04:02.7]} 22.
Kf2 {[%clk 0:03:39.4]} 22... Bd3 {[%clk 0:03:59]} 23. Kg1 {[%clk 0:03:31.5]}
23... Re2 {[%clk 0:03:57]} 24. Nf3 {[%clk 0:03:28.4]} 24... Be3+ {[%clk
0:03:53.9]} 25. Kh2 {[%clk 0:03:26.4]} 25... Be4 {[%clk 0:03:50]} 26. Ne5+
{[%clk 0:03:01.2]} 26... Ke6 {[%clk 0:03:46]} 27. Rf1 {[%clk 0:02:54.6]} 27...
Rxg2+ {[%clk 0:03:42.3]} 28. Kh1 {[%clk 0:02:51]} 28... Rxb2+ {[%clk 0:03:27.7]}
29. Nf3 {[%clk 0:02:39.7]} 29... Rxa2 {[%clk 0:03:26.1]} 30. Re1 {[%clk
0:02:35.6]} 30... Bxf3# {[%clk 0:03:23.7]} 0-1

[Event "Live Chess"]
[Site "Chess.com"]
[Date "2023.05.21"]
[Round "-"]
[White "EPotapov05"]
[Black "domrobson"]
[Result "1-0"]
[WhiteElo "1448"]
[BlackElo "1732"]
[TimeControl "300"]
[EndTime "1:48:33 PDT"]
[Termination "EPotapov05 won by resignation"]

1. d4 {[%clk 0:04:56.7]} 1... Nf6 {[%clk 0:04:59]} 2. c4 {[%clk 0:04:55.2]} 2...
e6 {[%clk 0:04:58]} 3. Nc3 {[%clk 0:04:53.9]} 3... d5 {[%clk 0:04:57.4]} 4. cxd5
{[%clk 0:04:52.2]} 4... Nxd5 {[%clk 0:04:55.8]} 5. e4 {[%clk 0:04:31.4]} 5...
Nxc3 {[%clk 0:04:52]} 6. bxc3 {[%clk 0:04:31.3]} 6... c5 {[%clk 0:04:48.8]} 7.
Nf3 {[%clk 0:04:28.9]} 7... Qa5 {[%clk 0:04:43.4]} 8. Bd2 {[%clk 0:04:19.8]}
8... cxd4 {[%clk 0:04:38.4]} 9. cxd4 {[%clk 0:04:18.5]} 9... Bb4 {[%clk
0:04:37.8]} 10. Bxb4 {[%clk 0:04:13.2]} 10... Qxb4+ {[%clk 0:04:36.6]} 11. Qd2
{[%clk 0:04:13.1]} 11... Nc6 {[%clk 0:04:33.7]} 12. Qxb4 {[%clk 0:04:09.5]}
12... Nxb4 {[%clk 0:04:32.8]} 13. Bb5+ {[%clk 0:04:08.5]} 13... Bd7 {[%clk
0:04:31]} 14. Bxd7+ {[%clk 0:04:07.1]} 14... Kxd7 {[%clk 0:04:30.1]} 15. Rb1
{[%clk 0:03:57.3]} 15... Nxa2 {[%clk 0:04:11.9]} 16. Rxb7+ {[%clk 0:03:55.8]}
16... Kc6 {[%clk 0:04:08.9]} 17. Rxf7 {[%clk 0:03:52.9]} 17... a5 {[%clk
0:04:04.1]} 18. Ne5+ {[%clk 0:03:44.7]} 18... Kb5 {[%clk 0:03:59]} 19. O-O
{[%clk 0:03:40.5]} 19... Nb4 {[%clk 0:03:55.8]} 20. Rb1 {[%clk 0:03:30.7]} 20...
Rhc8 {[%clk 0:03:47.7]} 21. Rxg7 {[%clk 0:03:25.5]} 21... a4 {[%clk 0:03:43.2]}
22. Rb7+ {[%clk 0:03:22.9]} 1-0

[Event "Live Chess"]
[Site "Chess.com"]
[Date "2023.05.21"]
[Round "-"]
[White "HadesLearmonth"]
[Black "OceanFloater"]
[Result "0-1"]
[WhiteElo "1210"]
[BlackElo "1026"]
[TimeControl "300"]
[EndTime "1:48:37 PDT"]
[Termination "OceanFloater won by checkmate"]

1. e4 {[%clk 0:04:57.8]} 1... c6 {[%clk 0:04:59.2]} 2. d4 {[%clk 0:04:56]} 2...
d5 {[%clk 0:04:58.9]} 3. e5 {[%clk 0:04:55.2]} 3... Bf5 {[%clk 0:04:57.4]} 4.
Nf3 {[%clk 0:04:54.2]} 4... e6 {[%clk 0:04:56.5]} 5. Bd3 {[%clk 0:04:52.9]} 5...
Bxd3 {[%clk 0:04:55]} 6. Qxd3 {[%clk 0:04:52.8]} 6... Ne7 {[%clk 0:04:53.2]} 7.
O-O {[%clk 0:04:51.8]} 7... Ng6 {[%clk 0:04:52]} 8. Nc3 {[%clk 0:04:49.9]} 8...
c5 {[%clk 0:04:50.9]} 9. Bg5 {[%clk 0:04:47.3]} 9... Qb6 {[%clk 0:04:42]} 10. b3
{[%clk 0:04:43.6]} 10... cxd4 {[%clk 0:04:38.4]} 11. Nxd4 {[%clk 0:04:41.5]}
11... Nxe5 {[%clk 0:04:36.6]} 12. Qg3 {[%clk 0:04:37.5]} 12... Qxd4 {[%clk
0:04:32.9]} 13. Be3 {[%clk 0:04:11.2]} 13... Qxc3 {[%clk 0:04:31]} 14. Rfd1
{[%clk 0:03:50.7]} 14... Nbc6 {[%clk 0:04:18.7]} 15. Rab1 {[%clk 0:03:47.5]}
15... Bd6 {[%clk 0:04:09.7]} 16. Bf4 {[%clk 0:03:43.7]} 16... Qxg3 {[%clk
0:04:06.7]} 17. Bxg3 {[%clk 0:03:42.9]} 17... O-O {[%clk 0:04:01]} 18. Re1
{[%clk 0:03:39.5]} 18... f6 {[%clk 0:03:59.6]} 19. c4 {[%clk 0:03:36.7]} 19...
Rae8 {[%clk 0:03:54.7]} 20. cxd5 {[%clk 0:03:34.5]} 20... exd5 {[%clk
0:03:53.4]} 21. a4 {[%clk 0:03:32]} 21... Nd4 {[%clk 0:03:48.7]} 22. Red1 {[%clk
0:03:27.7]} 22... Ne2+ {[%clk 0:03:44.2]} 23. Kf1 {[%clk 0:03:25.8]} 23... Nxg3+
{[%clk 0:03:42.7]} 24. hxg3 {[%clk 0:03:25.7]} 24... Ng6 {[%clk 0:03:30.7]} 25.
b4 {[%clk 0:03:23.6]} 25... Re5 {[%clk 0:03:15]} 26. f4 {[%clk 0:03:21.2]} 26...
Re4 {[%clk 0:03:13.5]} 27. Kf2 {[%clk 0:03:19.7]} 27... Bxb4 {[%clk 0:03:06.8]}
28. Kf3 {[%clk 0:03:16.7]} 28... Rc4 {[%clk 0:03:05.5]} 29. Rxd5 {[%clk
0:03:11.9]} 29... Rc3+ {[%clk 0:03:02.6]} 30. Ke2 {[%clk 0:03:09.3]} 30... Re8+
{[%clk 0:03:01.2]} 31. Kf1 {[%clk 0:03:08]} 31... Rxg3 {[%clk 0:02:59.2]} 32.
Rxb4 {[%clk 0:03:04.1]} 32... b6 {[%clk 0:02:50.3]} 33. f5 {[%clk 0:03:02.5]}
33... Ne7 {[%clk 0:02:46.8]} 34. Rd7 {[%clk 0:02:57.7]} 34... Nc6 {[%clk
0:02:45.3]} 35. Rb2 {[%clk 0:02:51.7]} 35... Ra3 {[%clk 0:02:42.2]} 36. Rc2
{[%clk 0:02:48.7]} 36... Ra1+ {[%clk 0:02:37.7]} 37. Kf2 {[%clk 0:02:46.7]}
37... Nb4 {[%clk 0:02:32.3]} 38. Rcd2 {[%clk 0:02:41.9]} 38... Nc6 {[%clk
0:01:57.9]} 39. Kf3 {[%clk 0:02:36.5]} 39... Rxa4 {[%clk 0:01:56]} 40. g4 {[%clk
0:02:35]} 40... Ne5+ {[%clk 0:01:54.5]} 41. Kg3 {[%clk 0:02:33.6]} 41... Nxd7
{[%clk 0:01:54]} 42. Rxd7 {[%clk 0:02:30.8]} 42... g5 {[%clk 0:01:51.8]} 43. Rc7
{[%clk 0:02:27.9]} 43... Re3+ {[%clk 0:01:48]} 44. Kf2 {[%clk 0:02:26.5]} 44...
Rb3 {[%clk 0:01:43.3]} 45. Rc8+ {[%clk 0:02:22.8]} 45... Kf7 {[%clk 0:01:41.9]}
46. Rc7+ {[%clk 0:02:21.7]} 46... Kg8 {[%clk 0:01:40.6]} 47. Rc8+ {[%clk
0:02:20.4]} 47... Kg7 {[%clk 0:01:39.8]} 48. Rc7+ {[%clk 0:02:18.9]} 48... Kh6
{[%clk 0:01:39.2]} 49. Rc2 {[%clk 0:02:08.3]} 49... Rxg4 {[%clk 0:01:37.1]} 50.
Rc1 {[%clk 0:02:05]} 50... a5 {[%clk 0:01:32.5]} 51. Rh1+ {[%clk 0:02:02.6]}
51... Kg7 {[%clk 0:01:31.5]} 52. Rd1 {[%clk 0:02:00.3]} 52... a4 {[%clk
0:01:27.4]} 53. Rd7+ {[%clk 0:01:58.9]} 53... Kh6 {[%clk 0:01:26]} 54. Rd1
{[%clk 0:01:57]} 54... a3 {[%clk 0:01:24.8]} 55. Rh1+ {[%clk 0:01:56.2]} 55...
Kg7 {[%clk 0:01:23.3]} 56. Rc1 {[%clk 0:01:54.7]} 56... a2 {[%clk 0:01:21.5]}
57. Ke2 {[%clk 0:01:53.6]} 57... Ra4 {[%clk 0:01:18.7]} 58. Kd1 {[%clk
0:01:49.1]} 58... a1=Q {[%clk 0:01:16.7]} 59. Rxa1 {[%clk 0:01:48]} 59... Rxa1+
{[%clk 0:01:15.3]} 60. Kc2 {[%clk 0:01:47.7]} 60... Rf3 {[%clk 0:01:11.6]} 61.
Kb2 {[%clk 0:01:46]} 61... Rh1 {[%clk 0:01:09.7]} 62. Kc2 {[%clk 0:01:43.8]}
62... Rh2+ {[%clk 0:01:09.4]} 63. Kd1 {[%clk 0:01:42.9]} 63... Rf1# {[%clk
0:01:09.2]} 0-1

[Event "Live Chess"]
[Site "Chess.com"]
[Date "2023.05.21"]
[Round "-"]
[White "Leonid_Starozhilov"]
[Black "whitedjohn"]
[Result "1-0"]
[WhiteElo "2655"]
[BlackElo "1642"]
[TimeControl "300"]
[EndTime "1:48:47 PDT"]
[Termination "Leonid_Starozhilov won by resignation"]

1. b3 {[%clk 0:04:59]} 1... e5 {[%clk 0:04:57]} 2. Bb2 {[%clk 0:04:58.9]} 2...
Nc6 {[%clk 0:04:55.7]} 3. e3 {[%clk 0:04:58.1]} 3... g6 {[%clk 0:04:53.7]} 4.
Bb5 {[%clk 0:04:47.7]} 4... Bg7 {[%clk 0:04:51]} 5. Nf3 {[%clk 0:04:46.4]} 5...
d6 {[%clk 0:04:49.1]} 6. d4 {[%clk 0:04:40.5]} 6... exd4 {[%clk 0:04:36.2]} 7.
Nxd4 {[%clk 0:04:38.7]} 7... Bd7 {[%clk 0:04:21.8]} 8. Nxc6 {[%clk 0:04:31.4]}
8... Bxb2 {[%clk 0:04:18.4]} 9. Nxd8 {[%clk 0:04:29.4]} 9... Bxb5 {[%clk
0:04:14.3]} 10. Nxf7 {[%clk 0:04:27.9]} 10... Kxf7 {[%clk 0:04:12.6]} 11. Qd5+
{[%clk 0:04:25.9]} 1-0

[Event "Live Chess"]
[Site "Chess.com"]
[Date "2023.05.21"]
[Round "-"]
[White "Reggie016"]
[Black "SteveValentine83"]
[Result "0-1"]
[WhiteElo "1065"]
[BlackElo "1533"]
[TimeControl "300"]
[EndTime "1:48:50 PDT"]
[Termination "SteveValentine83 won by resignation"]

1. e4 {[%clk 0:04:58.8]} 1... d5 {[%clk 0:04:59.1]} 2. exd5 {[%clk 0:04:58]}
2... Nf6 {[%clk 0:04:57.9]} 3. d4 {[%clk 0:04:56.7]} 3... Bg4 {[%clk 0:04:56.9]}
4. Bb5+ {[%clk 0:04:55.9]} 4... c6 {[%clk 0:04:54.4]} 5. Be2 {[%clk 0:04:54.5]}
5... Bxe2 {[%clk 0:04:52.8]} 6. Nxe2 {[%clk 0:04:51.9]} 6... cxd5 {[%clk
0:04:52.2]} 7. Nbc3 {[%clk 0:04:46.9]} 7... e6 {[%clk 0:04:50.2]} 8. O-O {[%clk
0:04:45.6]} 8... Nc6 {[%clk 0:04:49]} 9. Re1 {[%clk 0:04:43.5]} 9... a6 {[%clk
0:04:46.9]} 10. Bg5 {[%clk 0:04:42.8]} 10... Be7 {[%clk 0:04:45.2]} 11. Nf4
{[%clk 0:04:31.2]} 11... O-O {[%clk 0:04:43]} 12. Qe2 {[%clk 0:04:12.1]} 12...
h6 {[%clk 0:04:41.3]} 13. Bxf6 {[%clk 0:04:09.1]} 13... Bxf6 {[%clk 0:04:40]}
14. Rad1 {[%clk 0:04:04.1]} 14... Nxd4 {[%clk 0:04:29.1]} 15. Qd2 {[%clk
0:03:47.9]} 15... Nc6 {[%clk 0:04:05.1]} 16. Nh5 {[%clk 0:03:41.6]} 16... Re8
{[%clk 0:03:44.2]} 17. Qf4 {[%clk 0:03:18.7]} 17... Bxc3 {[%clk 0:03:33.6]} 18.
bxc3 {[%clk 0:03:16.1]} 18... Qg5 {[%clk 0:03:24.9]} 19. Qxg5 {[%clk 0:03:05.4]}
19... hxg5 {[%clk 0:03:23.7]} 20. Re3 {[%clk 0:02:59.2]} 20... Rad8 {[%clk
0:02:59.9]} 21. Rg3 {[%clk 0:02:54.6]} 21... f6 {[%clk 0:02:42.4]} 22. f4 {[%clk
0:02:49]} 22... Kh7 {[%clk 0:01:56.2]} 23. fxg5 {[%clk 0:02:45.2]} 23... fxg5
{[%clk 0:01:54.3]} 24. h4 {[%clk 0:02:38.5]} 24... Rf8 {[%clk 0:01:36.1]} 25.
Rxg5 {[%clk 0:02:32.3]} 25... Rd7 {[%clk 0:01:34.6]} 26. Rf1 {[%clk 0:02:15.1]}
26... Rdf7 {[%clk 0:01:31.3]} 27. Rxf7 {[%clk 0:02:09.7]} 27... Rxf7 {[%clk
0:01:31.2]} 28. g3 {[%clk 0:02:04.2]} 28... e5 {[%clk 0:01:23.6]} 29. Kg2 {[%clk
0:01:59.9]} 29... g6 {[%clk 0:01:19]} 0-1

[Event "Live Chess"]
[Site "Chess.com"]
[Date "2023.05.21"]
[Round "-"]
[White "RoaringKnights"]
[Black "Ferrarifan27"]
[Result "0-1"]
[WhiteElo "1036"]
[BlackElo "2094"]
[TimeControl "300"]
[EndTime "1:49:07 PDT"]
[Termination "Ferrarifan27 won by checkmate"]

1. e4 {[%clk 0:04:59]} 1... e5 {[%clk 0:04:58.1]} 2. Nf3 {[%clk 0:04:56]} 2...
Nc6 {[%clk 0:04:57.2]} 3. Bc4 {[%clk 0:04:54.5]} 3... Nd4 {[%clk 0:04:53.8]} 4.
Nxd4 {[%clk 0:04:52.9]} 4... exd4 {[%clk 0:04:50.7]} 5. Qh5 {[%clk 0:04:51.5]}
5... Qf6 {[%clk 0:04:44.3]} 6. O-O {[%clk 0:04:43.1]} 6... d6 {[%clk 0:04:41.9]}
7. d3 {[%clk 0:04:41.2]} 7... g6 {[%clk 0:04:39.8]} 8. Qb5+ {[%clk 0:04:36.3]}
8... c6 {[%clk 0:04:38.9]} 9. Qb3 {[%clk 0:04:33.7]} 9... Bg7 {[%clk 0:04:34.3]}
10. Nd2 {[%clk 0:04:29.3]} 10... Ne7 {[%clk 0:04:32.9]} 11. Nf3 {[%clk
0:04:26.9]} 11... h6 {[%clk 0:04:24]} 12. Bd2 {[%clk 0:04:16.5]} 12... O-O
{[%clk 0:04:19.6]} 13. c3 {[%clk 0:04:14.1]} 13... c5 {[%clk 0:04:09.7]} 14.
cxd4 {[%clk 0:04:10.7]} 14... cxd4 {[%clk 0:04:08.9]} 15. Bb4 {[%clk 0:04:09.3]}
15... Nc6 {[%clk 0:04:06.2]} 16. Bd2 {[%clk 0:04:03.1]} 16... Bg4 {[%clk
0:03:56.7]} 17. Qd1 {[%clk 0:03:51.9]} 17... Ne5 {[%clk 0:03:53.5]} 18. Bd5
{[%clk 0:03:39.3]} 18... Nxf3+ {[%clk 0:03:51.9]} 19. gxf3 {[%clk 0:03:38.2]}
19... Bxf3 {[%clk 0:03:50.9]} 20. Qe1 {[%clk 0:03:33.2]} 20... Qh4 {[%clk
0:03:43.8]} 21. Bxb7 {[%clk 0:03:22.2]} 21... Qg4# {[%clk 0:03:41.8]} 0-1

[Event "Live Chess"]
[Site "Chess.com"]
[Date "2023.05.21"]
[Round "-"]
[White "elizaveta_frundina"]
[Black "JoshMcK"]
[Result "1-0"]
[WhiteElo "1573"]
[BlackElo "1522"]
[TimeControl "300"]
[EndTime "1:49:17 PDT"]
[Termination "elizaveta_frundina won by resignation"]

1. e4 {[%clk 0:04:57.6]} 1... c6 {[%clk 0:04:58.6]} 2. d4 {[%clk 0:04:55.6]}
2... d5 {[%clk 0:04:58.5]} 3. e5 {[%clk 0:04:54.3]} 3... c5 {[%clk 0:04:50.1]}
4. c3 {[%clk 0:04:51.8]} 4... Nc6 {[%clk 0:04:41.3]} 5. Nf3 {[%clk 0:04:47.4]}
5... cxd4 {[%clk 0:04:38.6]} 6. cxd4 {[%clk 0:04:46]} 6... Bg4 {[%clk
0:04:37.8]} 7. Bb5 {[%clk 0:04:43.4]} 7... Bxf3 {[%clk 0:04:35.2]} 8. Qxf3
{[%clk 0:04:40.8]} 8... e6 {[%clk 0:04:34.5]} 9. Nc3 {[%clk 0:04:32.8]} 9... a6
{[%clk 0:04:30.9]} 10. Bxc6+ {[%clk 0:04:31.4]} 10... bxc6 {[%clk 0:04:29.4]}
11. O-O {[%clk 0:04:30]} 11... Ne7 {[%clk 0:04:25.4]} 12. Bg5 {[%clk 0:04:26.9]}
12... Qb6 {[%clk 0:04:18.1]} 13. Rfd1 {[%clk 0:04:14.7]} 13... Nf5 {[%clk
0:04:09.8]} 14. Na4 {[%clk 0:04:01.7]} 14... Qa7 {[%clk 0:04:01.6]} 15. Be3
{[%clk 0:03:48.8]} 15... Be7 {[%clk 0:03:56.3]} 16. Rac1 {[%clk 0:03:46.4]}
16... Rc8 {[%clk 0:03:49.5]} 17. Nc5 {[%clk 0:03:39.6]} 17... Nxe3 {[%clk
0:03:41.8]} 18. fxe3 {[%clk 0:03:32.9]} 18... Bxc5 {[%clk 0:03:38.9]} 19. Rxc5
{[%clk 0:03:31.3]} 19... O-O {[%clk 0:03:38]} 20. Rdc1 {[%clk 0:03:28.5]} 20...
Qb6 {[%clk 0:03:32.8]} 21. Qe2 {[%clk 0:03:19.5]} 21... Rc7 {[%clk 0:03:26.9]}
22. Qc2 {[%clk 0:03:15.5]} 22... Rfc8 {[%clk 0:03:24.3]} 23. a3 {[%clk
0:03:02.6]} 23... g6 {[%clk 0:03:17.1]} 24. b4 {[%clk 0:02:58]} 24... Kg7 {[%clk
0:03:11.7]} 25. Qf2 {[%clk 0:02:53.3]} 25... Qb7 {[%clk 0:02:53.7]} 26. Qf6+
{[%clk 0:02:46.2]} 26... Kg8 {[%clk 0:02:51.5]} 27. h4 {[%clk 0:02:31.2]} 27...
h5 {[%clk 0:02:45.7]} 28. g4 {[%clk 0:02:23.8]} 28... hxg4 {[%clk 0:02:40.3]}
29. h5 {[%clk 0:02:21.9]} 29... gxh5 {[%clk 0:02:32.9]} 30. Kg2 {[%clk
0:02:16.9]} 30... Re7 {[%clk 0:02:20.6]} 31. Rh1 {[%clk 0:02:12.2]} 31... Qd7
{[%clk 0:02:18.1]} 32. Rxh5 {[%clk 0:02:05.6]} 1-0